Cogmind - Beta 17.1 @@@ ROGUE MODE // 2026.08.31 @ 03:22:12 Player: Godsword Result: Self-destructed Performance ------------- Evolutions (2) 1000 Regions Visited (4) 800 Robots Destroyed (19) 95 Value Destroyed (470) 470 Prototype IDs (1) 20 Alien Tech Used (0) 0 Bonus (-2) -2 TOTAL SCORE: 2383 Bonus ------- Follower Combat Kills 35 Friendly Fire -37 Cogmind --------- Core Integrity 536/550 Matter 183/300 Energy 265/265 System Corruption 0% Temperature Cool (6) Movement Flying (34) Location -8/Materials Parts ------- > --- POWER (1) -------- Improved Ion Engine > --- PROPULSION (3) --- Flight Unit Flight Unit Flight Unit > --- UTILITY (5) ------ Weight Redist. System Structural Scanner Advanced Targeting Computer > --- WEAPON (2) ------- Mini Grenade Launcher Mini Grenade Launcher > --- INVENTORY (5) ---- Light Ion Engine Dirty Datajack (20) Peak State ------------ > --- POWER ------------ Improved Ion Engine > --- PROPULSION ------- Titanium Leg Flight Unit Flight Unit Flight Unit > --- UTILITY ---------- Weight Redist. System Structural Scanner Advanced Targeting Computer Tower Shield > --- WEAPON ----------- Mini Grenade Launcher Mini Grenade Launcher > --- INVENTORY -------- Light Ion Engine Dirty Datajack [Rating: 38] Favorites ----------- Power Improved Ion Engine Engine Improved Ion Engine Propulsion Flight Unit Leg Titanium Leg Flight Unit Flight Unit Utility Weight Redist. System Device Weight Redist. System Processor Advanced Targeting Computer Protection Tower Shield Weapon Mini Grenade Launcher Energy Gun EM Pulse Gun Ballistic Gun Battle Rifle Launcher Mini Grenade Launcher Special Melee Weapon Dirty Datajack Build | -11 -10 -10 -10 -8 ------- Run | Yrd Mat Min Sub Mat Slots Evolved 4 | . . . . 4 Power . | . . . . . Propulsion 1 | . . . . 1 Utility 3 | . . . . 3 Weapon . | . . . . . Parts Attached 18 | 1 7 1 4 5 Power 2 | . 2 . . . Engine 2 | . 2 . . . Core . | . . . . . Reactor . | . . . . . Propulsion 5 | . 1 1 . 3 Treads . | . . . . . Leg 1 | . . . . 1 Wheel . | . . . . . Hover . | . . . . . Flight 4 | . 1 1 . 2 Utility 4 | . 2 . . 2 Device 2 | . 2 . . . Storage . | . . . . . Processor 1 | . . . . 1 Hackware . | . . . . . Protection 1 | . . . . 1 Artifact . | . . . . . Weapon 7 | 1 2 . 4 . Energy Gun 1 | 1 . . . . Energy Cannon . | . . . . . Ballistic Gun 1 | . . . 1 . Ballistic Cannon . | . . . . . Launcher 4 | . 2 . 2 . Special Weapon . | . . . . . Impact Weapon . | . . . . . Slashing Weapon . | . . . . . Piercing Weapon . | . . . . . Special Melee Weapon 1 | . . . 1 . Unidentified Prototypes 1 | . . . . 1 Parts Lost 2 | . . . 1 1 Power . | . . . . . Propulsion . | . . . . . Utility 1 | . . . . 1 Weapon 1 | . . . 1 . Highest Loss Streak 1 | . . . 1 1 To Critical Strikes . | . . . . . Average Backups 3 | 1 3 4 4 2 Power . | . . 1 . 1 Propulsion . | . . . 1 . Utility . | . . . . . Weapon 1 | . 3 3 1 . Tool/Special . | . . . . . Unused Backups 2 | . . 1 . 1 Power 1 | . . . . 1 Propulsion . | . . . . . Utility . | . . . . . Weapon 1 | . . 1 . . Tool/Special . | . . . . . Average Slot Usage (%) 78 | . 46 96 99 59 Engine 10 | . 8 14 14 5 Flight 19 | . . 24 28 18 Device 20 | . 12 28 28 11 Processor 1 | . . . . 4 Protection 1 | . . . . 5 Launcher 20 | . 19 28 25 11 Peak Build Rating 38 | 1 10 11 17 38 Average Rating 16 | . 5 10 12 35 On Entrance 7 | . 1 10 11 13 Avg Prop Armor Cover (%) 1 | . . . . 1 Naked Turns . | . . . . . Heaviest Build 48 | 2 10 10 11 48 Greatest Support 23 | 3 10 14 14 23 Greatest Overweight (x) 2 | . . . . 2 Average Overweight (x) . | . . . . 2 Largest Inventory Capacity 5 | 5 5 5 5 5 Average Capacity 5 | 5 5 5 5 5 Most Carried 5 | 2 5 5 5 3 Average Carried 3 | 1 3 4 4 2 Final Capacity 5 | 5 5 5 5 5 Final Carried 5 | 2 5 5 5 2 Class Distribution -------------------- 90% | Mutant 9% | Scavenger-Mutant Dominant Class ---------------- Mutant | -10/Materials Mutant | -10/Mines Mutant | -10/Subcaves Mutant | -8/Materials Resources | -11 -10 -10 -10 -8 ----------- Run | Yrd Mat Min Sub Mat Matter Collected 584 | 210 25 108 225 16 Remotely . | . . . . . Salvage Created 203 | . 150 2 35 16 Parts 25 | . 17 3 . 5 Haulers Intercepted . | . . . . . Recyclers Shooed . | . . . . . Parts Field Recycled . | . . . . . Retrieved Matter . | . . . . . Parts Self-Destructed 2 | . . . 2 . Prevented . | . . . . . Parts Restored . | . . . . . Kills | -11 -10 -10 -10 -8 ------- Run | Yrd Mat Min Sub Mat Combat Hostiles Destroyed 14 | . 6 2 2 4 AOE 14 | . 6 2 2 4 Classes Destroyed 9 | . 5 1 2 1 Worker 1 | . 1 . . . Builder 1 | . 1 . . . Operator 1 | . 1 . . . Watcher 1 | . 1 . . . Swarmer 5 | . . 2 . 3 Grunt 6 | . 6 . . . Sentry 1 | . . . . 1 Subdweller 2 | . . . 2 . Zionite 1 | . . . 1 . Best Kill Streak 10 | . 10 2 2 3 Combat Bots Only 6 | . 6 2 2 3 Max Kills in Single Turn 3 | . 2 2 2 3 Gunslinging . | . . . . . Exploded 3 | . 1 2 1 3 Melee . | . . . . . Uniques/NPCs Destroyed . | . . . . . Combat | -11 -10 -10 -10 -8 -------- Run | Yrd Mat Min Sub Mat Hostile Shots Fired 51 | . 9 6 6 30 Missed 19 | . 2 4 2 11 Hits 32 | . 7 2 4 19 Projectile 32 | . 7 2 4 19 Critical Strikes 2 | . 1 . 1 . Damage Taken 632 | . 86 76 131 339 Core 73 | . 10 49 . 14 Absorbed by Shields . | . . . . . Core Remaining (%) 88 | 100 . . 76 . Volleys Fired 26 | . 6 3 8 9 Largest 2 | . 2 1 2 1 Hottest 60 | . 60 30 60 30 Shots Fired 34 | . 12 3 10 9 Gun 1 | . . . 1 . Cannon . | . . . . . Launcher 33 | . 12 3 9 9 Special . | . . . . . Kinetic 1 | . . . 1 . Thermal . | . . . . . Explosive 33 | . 12 3 9 9 Electromagnetic . | . . . . . Robot Hit Streak 7 | . 1 . 3 7 Robot Miss Streak 2 | . 2 . 1 . Penetration Max . | . . . . . Secondary Targets . | . . . . . Shots Hit Robots 10 | . 1 . 3 6 Core Hits 29 | . 13 3 5 8 Critical Kills . | . . . . . Critical Parts Destroyed . | . . . . . Critical Strikes . | . . . . . Melee Attacks . | . . . . . Impact . | . . . . . Slashing . | . . . . . Piercing . | . . . . . Sneak Attacks . | . . . . . Combat Hostiles . | . . . . . Follow-up Attacks . | . . . . . Damage Inflicted 1464 | . 659 97 428 280 Guns . | . . . . . Cannons . | . . . . . Explosions 1461 | . 659 97 428 277 Melee . | . . . . . Ramming 3 | . . . . 3 Kinetic . | . . . . . Thermal 21 | . 21 . . . Explosive 1440 | . 638 97 428 277 Electromagnetic . | . . . . . Impact . | . . . . . Slashing . | . . . . . Piercing . | . . . . . Highest Corruption . | . . . . . Average Corruption . | . . . . . Corruption Purged . | . . . . . Corruption Blocked . | . . . . . Overload Shots . | . . . . . Overflow Damage 16 | . 16 . . . Projectiles . | . . . . . Explosions 16 | . 16 . . . Melee . | . . . . . Knockbacks . | . . . . . Impact . | . . . . . Kinetic . | . . . . . Secondary . | . . . . . Self-Inflicted Damage 171 | . . 59 50 62 Shots 5 | . . 2 1 2 Rammed 1 | . . . . 1 Targets Rammed 1 | . . . . 1 Kicked . | . . . . . Crushed . | . . . . . Highest Temperature 60 | . 60 . . 6 Average Temperature 38 | . 45 . . 3 Received Heat Transfer 162 | . 66 . 24 72 Siege Activations . | . . . . . Martial Activations . | . . . . . Shielding Activations . | . . . . . Robots Disrupted . | . . . . . Combat Hostiles . | . . . . . Robots Corrupted . | . . . . . Combat Hostiles . | . . . . . Parts Fried . | . . . . . Impact Corruptions . | . . . . . Robots Melted . | . . . . . Combat Hostiles . | . . . . . Parts Melted 1 | . . . 1 . Heat Transferred 50 | . 50 . . . Parts Sabotaged . | . . . . . Parts Stolen . | . . . . . Parts Stripped . | . . . . . Power Chain Reactions . | . . . . . Alert | -11 -10 -10 -10 -8 ------- Run | Yrd Mat Min Sub Mat Maximum Alert Level 1 | . 1 . . . Low Security (%) 89 | 100 66 100 . 100 Level 1 10 | . 33 . . . Level 2 . | . . . . . Level 3 . | . . . . . Level 4 . | . . . . . Level 5 . | . . . . . High Security . | . . . . . Max Security . | . . . . . Peak Influence 226 | . 226 158 . 142 Initial 79 | . . 79 . . Average 71 | . 83 132 . 35 Influence Increases 559 | . 251 119 . 189 Destroy 0b10 Robot/C 260 | . 120 60 . 80 Destroy 0b10 Robot/NC 20 | . 20 . . . Destroy Leader 72 | . 32 20 . 20 Allied During Kill 4 | . . 4 . . Disable Machine 60 | . 30 . . 30 Destroy Structure 113 | . 34 20 . 59 Lose Combat Pursuer 30 | . 15 15 . . Influence Decreases 420 | . 45 177 148 50 Entered New Map 205 | . . 127 78 . Time Decay 205 | . 45 50 70 40 Lost Part 10 | . . . . 10 Squads Dispatched 3 | . 2 . . 1 Investigation 1 | . 1 . . . Extermination . | . . . . . Reinforcement 2 | . 1 . . 1 Assault . | . . . . . Garrison . | . . . . . Intercept . | . . . . . Searches Triggered . | . . . . . Construction Impeded . | . . . . . Haulers Reinforced . | . . . . . Active Scanning Responses . | . . . . . Cargo Convoy Interrupts . | . . . . . Stealth | -11 -10 -10 -10 -8 --------- Run | Yrd Mat Min Sub Mat Distress Signals 1 | . . . . 1 Communications Jammed . | . . . . . Distress Signals . | . . . . . Times Spotted 20 | . 8 4 2 6 Peak Tracking Total 4 | . 4 3 2 3 Tactical Retreats 2 | . 1 1 . . Traps | -11 -10 -10 -10 -8 ------- Run | Yrd Mat Min Sub Mat Traps Triggered 1 | . 1 . . . Indirectly . | . . . . . Trap Hack Attempts . | . . . . . Triggered . | . . . . . Disarmed . | . . . . . Reprogrammed . | . . . . . Reused . | . . . . . Traps Extracted . | . . . . . Installed . | . . . . . Triggered . | . . . . . Machines | -11 -10 -10 -10 -8 ---------- Run | Yrd Mat Min Sub Mat Machines Disabled 6 | . 2 . 2 2 Max in Single Turn 2 | . 2 . 2 1 Machines Repaired . | . . . . . Machines Dismantled . | . . . . . Machines Sabotaged . | . . . . . Overloaded Fab Kills . | . . . . . Hacking | -11 -10 -10 -10 -8 --------- Run | Yrd Mat Min Sub Mat Machines Accessed 3 | . . . 3 . Terminals . | . . . . . Fabricators . | . . . . . Repair Stations . | . . . . . Recycling Units . | . . . . . Scanalyzers . | . . . . . Garrison Access . | . . . . . Total Hacks 11 | . . . 11 . Successful 11 | . . . 11 . Failed . | . . . . . Catastrophic . | . . . . . Database Lockouts . | . . . . . Manual . | . . . . . Terminals . | . . . . . Fabricators . | . . . . . Repair Stations . | . . . . . Recycling Units . | . . . . . Scanalyzers . | . . . . . Garrison Access . | . . . . . Terminal Hacks 11 | . . . 11 . Record 9 | . . . 9 . Open Door 1 | . . . 1 . Release Object 1 | . . . 1 . Fabricator Hacks . | . . . . . Repair Station Hacks . | . . . . . Recycling Unit Hacks . | . . . . . Scanalyzer . | . . . . . Garrison Access Hacks . | . . . . . Unauthorized Hacks . | . . . . . Terminals . | . . . . . Fabricators . | . . . . . Repair Stations . | . . . . . Recycling Units . | . . . . . Scanalyzers . | . . . . . Garrison Access . | . . . . . Data Cores Recovered . | . . . . . Used . | . . . . . Hacking Detections . | . . . . . Full Trace Events . | . . . . . Feedback Events . | . . . . . Feedback Blocked . | . . . . . Robot Schematics Acquired . | . . . . . Robots Built . | . . . . . Authchips . | . . . . . Time . | . . . . . Total Robot Build Rating . | . . . . . Part Schematics Acquired . | . . . . . Parts Built . | . . . . . Authchips . | . . . . . Time . | . . . . . Total Part Build Rating . | . . . . . Part Studies Acquired . | . . . . . Parts Repaired . | . . . . . Time . | . . . . . Parts Recycled . | . . . . . Recycled Matter . | . . . . . Retrieved Matter . | . . . . . Retrieved Components . | . . . . . Parts Scanalyzed . | . . . . . Part Schematics Acquired . | . . . . . Parts Damaged . | . . . . . Bothacking | -11 -10 -10 -10 -8 ------------ Run | Yrd Mat Min Sub Mat Used RIF Installer . | . . . . . Robots Hacked . | . . . . . Non-combat . | . . . . . Combat . | . . . . . Robot Hacks Applied . | . . . . . Relay Couplers Released . | . . . . . Fabnet Peak Effective % . | . . . . . Robots Rewired . | . . . . . Allies Hacked . | . . . . . Hacks Repelled . | . . . . . Allies | -11 -10 -10 -10 -8 -------- Run | Yrd Mat Min Sub Mat Total Allies 2 | . . 2 . . Largest Group 2 | . . 2 2 . Highest-Rated Group 42 | . . 42 37 . Highest-Rated Ally 31 | . . 31 26 . Total Orders . | . . . . . Ally Attacks 14 | . . 9 5 . Total Damage 188 | . . 103 85 . Kills 1 | . . 1 . . Allies Corrupted . | . . . . . Allies Melted . | . . . . . Intel | -11 -10 -10 -10 -8 ------- Run | Yrd Mat Min Sub Mat Active Infowar (turns) 658 | . 44 110 311 193 Structural 658 | . 44 110 311 193 Robot Analysis Total . | . . . . . Derelict Logs Recovered 1 | . . . 1 . Drone Launches . | . . . . . Drone Recoveries . | . . . . . Exploration | -11 -10 -10 -10 -8 ------------- Run | Yrd Mat Min Sub Mat Turns Passed 790 | 21 155 110 311 193 Spaces Moved 1091 | 35 237 175 562 82 Core 236 | 35 201 . . . Treads . | . . . . . Legs 8 | . . . . 8 Wheels . | . . . . . Hover . | . . . . . Flight 847 | . 36 175 562 74 Fastest Speed 37 | 50 40 37 37 191 Average Speed 52 | 50 48 37 37 200 Slowest Speed 270 | 50 50 40 37 270 Overloaded Moves . | . . . . . Propulsion Burnouts . | . . . . . Robots Hopped . | . . . . . Potential Cave-ins . | . . . . . Cave-ins Triggered . | . . . . . Exploration Rate (%) 24 | 3 34 31 39 13 Regions Visited 4 Branch Regions 2 Pre-discovered Areas . | . . . . . Known Exits Taken . | . . . . . Unknown Exits Taken 4 | 1 1 1 1 . Scrap Searched 7 | . . 1 6 . Spaces Dug . | . . . . . Terrain Destroyed 188 | . 38 26 50 74 Melee . | . . . . . Projectile . | . . . . . AOE 188 | . 38 26 50 74 Terrain Rammed . | . . . . . Walls Destroyed . | . . . . . Machines Disabled . | . . . . . Actions | -11 -10 -10 -10 -8 --------- Run | Yrd Mat Min Sub Mat Total 1270 | 37 262 217 655 99 Wait 120 | . 9 35 75 1 Move 1087 | 34 236 174 561 82 Hop . | . . . . . Pick Up 9 | 2 3 2 2 . Fast Attach 11 | 1 4 1 2 3 Attach 5 | . 2 . 1 2 Detach 1 | . 1 . . . Swap 2 | . 1 . 1 . Drop 7 | . . 2 4 1 Fire 26 | . 6 3 8 9 Melee . | . . . . . Ram 1 | . . . . 1 Kick . | . . . . . Crush . | . . . . . Escape Stasis . | . . . . . Rewire . | . . . . . Trap . | . . . . . Miscellaneous 1 | . . . 1 . Route ------- -11/Scrapyard -10/Materials -10/Mines (discovered 2 exits: [*Mat] / *Sub) -10/Subcaves -8/Materials History --------- Turn | Location | Event 9 | -11/Scrapyard | Discovered new exit (range 16) 22 | -11/Scrapyard | Entered Materials 154 | -10/Materials | Discovered new exit (range 9) 177 | -10/Materials | Entered Mines 228 | -10/Mines | Discovered new exit (range 11) 239 | -10/Mines | Discovered new exit (range 10) 248 | -10/Mines | Met a Derelict bent on vengeance 287 | -10/Mines | Entered Subcaves 287 | -10/Subcaves | Accompanied by 2 allies 291 | -10/Subcaves | Learned Materials emergency access door positions 292 | -10/Subcaves | Led the pair of lost Derelicts to an unsafe place 317 | -10/Subcaves | Build established: Mutant 351 | -10/Subcaves | Visited 4L-MR0's lab 372 | -10/Subcaves | Found Prototype Protection 409 | -10/Subcaves | Released subatomizers from SUBCON Basin 477 | -10/Subcaves | Shifting Twisted Machinery released Sub. Machine Gun 492 | -10/Subcaves | Shifting Twisted Machinery released Spk. Treads 567 | -10/Subcaves | Shifting Twisted Machinery released Mak. System Shield 569 | -10/Subcaves | Shifting Twisted Machinery released Battle Cannon 585 | -10/Subcaves | Discovered new exit (range 8) 598 | -10/Subcaves | Entered Materials 598 | -8/Materials | Evolved 4 slots: Propulsion x1, Utility x3 598 | -8/Materials | Identified Tower Shield 599 | -8/Materials | Attached Tower Shield, gained temporary slots: Power, Propulsion x2, Utility x2, Weapon x2 791 | -8/Materials | Self-destructed Last Messages --------------- signal. 00735_ O-16 Technician: "IFF HANDSHAKE FAILED. SECURING TERMINAL." 00742_ Nuclear Reactor explodes. 00743_ The unstable cave ceiling collapses. 00743_ ALERT: Hostiles spotted, dispatching reinforcements to Terminal M006. 00749_ The unstable cave ceiling collapses. 00751_ U-05 Engineer lays Concrete. 00754_ U-05 Engineer builds a Wall. 00769_ Slammed into O-16 Technician. 00789_ The unstable cave ceiling collapses. 00789_ Y-45 Defender destroyed. 00790_ Fusion Modulator explodes. 00790_ The unstable cave ceiling collapses. 00790_ Tower Shield destroyed. 00791_ Temporary Power slot lost. 00791_ Temporary Propulsion slot lost. 00791_ Temporary Utility slot lost. 00791_ Temporary Weapon slot lost. Map ----- +----------------------------------------------------+ | ????## ###""" ## ##???????????? | | ????## ###""" !## ###??????????? | | ????## ### # #####????????? | | ???? # #### ####????????? | | ???? # ### # #????????? | | ???? # ### ##????????? | | ???? # ### # #?????????? | | ???? + ### #######?????? | | ???? # ### #######?????? | | ###### #### # ?????? | | ###### # """ ???????? | | #### # """ "??????? | | + h # """ "??????? | | ## # """ """????? | | #####+##+## # + """ ""?????? | | ## # # # ??? | | ## # ## # ; ;####??? | | ## # # ###?? | | ## # # ###?? | | ## # # ! #### | | ## / # ;;#### | | ## # ###; ## | | ## # ### ## | | ## ########### ## | | ###################### ; ## | | ############????????## ; @ ## | | ????????????????????#### = "T" ## | | ????????????????????#### """ ## | | ??????????????????????############## | | | | | | | | | | | | | | | | | | | | | | | | | | | | | | | | | | | | | | | | | | | +----------------------------------------------------+ Best States ------------- Heat Dissipation 31 Energy Generation 12 Energy Capacity 265 Matter Stores 300 Matter Capacity 300 Sight Range 16 Terrain Scan Density 10 Additional Mass Support 6 Armor Coverage 2000 Evasion (%) 62 Targeting Accuracy 8 Item Schematics ----------------- None Robot Schematics ------------------ None Fabricated ------------ Nothing Repaired ---------- Nothing Studied --------- None Alien Tech Used ----------------- None Achievements -------------- None Challenges ------------ None Game ------ Seed GodRiotShifter Manual? 0 Play Time 00:16:14 Cumulative 41.0 hours Start 2026.08.31 @ 03:07:24 End 2026.08.31 @ 03:22:12 Sessions 1 Manual Loads 0 Difficulty Rogue Special Mode None Game No. 103 Rogue 103 Adventurer 0 Explorer 0 Win Type - Total 3 Types 3/0/0/0/0/0/0/0/0/0 Lore% 40 Gallery% 35 Achievement% 41 Wizard Run 0 Options --------- Layout 2 ASCII 0 Keyboard 0 Movement Mouse Keybinds 0 Fullscreen 1 Font 16/SmallcapsGlow Map View 50x49 Zoom Use 0% Tactical HUD 1 Map Filters NONE Filters NONE Steam SD RUN: 3043dfe4-11a5-4c03-8a8c-5948124801c2